Cogmind - Beta 15 @@@ ROGUE MODE // 2025.07.19 @ 20:50:39 Player: saltine Result: Destroyed by S-10 Pest with Light Assault Rifle Performance ------------- Evolutions (0) 0 Regions Visited (2) 400 Robots Destroyed (27) 135 Value Destroyed (520) 520 Prototype IDs (0) 0 Alien Tech Used (0) 0 Bonus (-69) -69 TOTAL SCORE: 986 Bonus ------- Friendly Fire -69 Cogmind --------- Core Integrity 0/250 Matter 288/300 Energy 160/160 System Corruption 0% Temperature Cool (0) Movement Treading (160) Location -10/Mines Parts ------- > --- POWER (1) -------- Light Nuclear Core > --- PROPULSION (2) --- Light Treads Light Treads > --- UTILITY (2) ------ Large Storage Unit Seismic Detector > --- WEAPON (2) ------- Assault Rifle Assault Rifle > --- INVENTORY (15) --- Ion Engine Light Treads Light Treads Light Treads Advanced Heat Sink Large Matter Pod (150) Hacking Suite Hacking Suite Grenade Launcher Rocket Launcher Mining Laser Peak State ------------ > --- POWER ------------ Light Nuclear Core > --- PROPULSION ------- Light Treads Light Treads > --- UTILITY ---------- Large Storage Unit Seismic Detector > --- WEAPON ----------- Assault Rifle Assault Rifle > --- INVENTORY -------- Ion Engine Light Treads Light Treads Light Treads Light Treads Light Treads Large Matter Pod Hacking Suite Hacking Suite Assault Rifle Assault Rifle Assault Rifle Grenade Launcher Rocket Launcher Mining Laser [Rating: 11] Favorites ----------- Power Light Nuclear Core Engine Ion Engine Power Core Light Nuclear Core Propulsion Light Treads Treads Light Treads Utility Large Storage Unit Device Seismic Detector Storage Large Storage Unit Weapon Assault Rifle Energy Gun Small Laser Ballistic Gun Assault Rifle Launcher Grenade Launcher Special Weapon Mining Laser Build | -11 -10 -10 ------- Run | Yrd Mat Min Slots Evolved . | . . . Power . | . . . Propulsion . | . . . Utility . | . . . Weapon . | . . . Parts Attached 24 | 7 12 5 Power 2 | 1 1 . Engine 1 | 1 . . Core 1 | . 1 . Reactor . | . . . Propulsion 7 | 2 3 2 Treads 7 | 2 3 2 Leg . | . . . Wheel . | . . . Hover . | . . . Flight . | . . . Utility 3 | 2 1 . Device 1 | 1 . . Storage 2 | 1 1 . Processor . | . . . Hackware . | . . . Protection . | . . . Artifact . | . . . Weapon 12 | 2 7 3 Energy Gun 1 | 1 . . Energy Cannon . | . . . Ballistic Gun 9 | 1 5 3 Ballistic Cannon . | . . . Launcher 1 | . 1 . Special Weapon 1 | . 1 . Impact Weapon . | . . . Slashing Weapon . | . . . Piercing Weapon . | . . . Special Melee Weapon . | . . . Unidentified Prototypes . | . . . Parts Lost 5 | . . 5 Power . | . . . Propulsion 2 | . . 2 Utility . | . . . Weapon 3 | . . 3 Highest Loss Streak 5 | . . 5 To Critical Strikes . | . . . Average Backups 12 | 2 12 13 Power 1 | . 1 1 Propulsion 5 | 1 5 4 Utility 1 | . 1 3 Weapon 3 | . 3 4 Tool/Special . | . . . Unused Backups 12 | . 4 8 Power 2 | . 1 1 Propulsion 4 | . 2 2 Utility 4 | . . 4 Weapon 2 | . 1 1 Tool/Special . | . . . Average Slot Usage (%) 96 | . 96 99 Engine 6 | . 7 . Core 7 | . 6 14 Treads 27 | . 28 27 Device 10 | . 10 14 Storage 14 | . 14 14 Energy Gun 2 | . 3 . Ballistic Gun 25 | . 24 28 Peak Build Rating 11 | 7 10 11 Average Rating 8 | 5 8 10 On Entrance 5 | . 7 10 Naked Turns . | . . . Heaviest Build 30 | 14 30 30 Greatest Support 40 | 40 40 40 Greatest Overweight (x) . | . . . Average Overweight (x) . | . . . Largest Inventory Capacity 15 | 8 15 15 Average Capacity 14 | 7 14 15 Most Carried 15 | 5 15 15 Average Carried 12 | 2 12 13 Final Capacity 15 | 8 15 15 Final Carried 15 | 4 15 11 Class Distribution -------------------- 100% | Mutant Dominant Class ---------------- Mutant | -10/Materials Mutant | -10/Mines Resources | -11 -10 -10 ----------- Run | Yrd Mat Min Matter Collected 978 | 268 547 163 Remotely . | . . . Salvage Created 996 | 91 779 126 Parts 62 | 8 51 3 Haulers Intercepted 2 | . 2 . Recyclers Shooed 2 | 1 1 . Parts Field Recycled . | . . . Retrieved Matter . | . . . Parts Self-Destructed . | . . . Prevented . | . . . Kills | -11 -10 -10 ------- Run | Yrd Mat Min Combat Hostiles Destroyed 16 | . 14 2 Guns 14 | . 12 2 AOE 2 | . 2 . Classes Destroyed 7 | 2 5 . Builder 1 | . 1 . Tunneler 2 | 2 . . Hauler 2 | . 2 . Recycler 4 | 1 3 . Operator 2 | . 2 . Swarmer 4 | . 3 1 Grunt 11 | . 11 . Best Kill Streak 4 | 3 4 1 Combat Bots Only 3 | . 3 1 Max Kills in Single Turn 2 | 1 2 1 Gunslinging . | . . . Exploded 2 | . 2 . Melee . | . . . Uniques/NPCs Destroyed 1 | . . 1 YI-UF0 (-10/Mines) Combat | -11 -10 -10 -------- Run | Yrd Mat Min Hostile Shots Fired 95 | . 58 37 Missed 22 | . 13 9 Hits 73 | . 45 28 Projectile 73 | . 45 28 AOE 26 | . . 26 Critical Strikes 1 | . 1 . Damage Taken 1372 | . 552 820 Core 251 | . 72 179 Absorbed by Shields . | . . . Regen/Repaired (Parts) 199 | . 199 . Core Remaining (%) 100 | 100 . . Volleys Fired 82 | 4 62 16 Largest 2 | 2 2 2 Hottest 100 | 60 100 40 Shots Fired 161 | 8 122 31 Gun 159 | 8 120 31 Cannon . | . . . Launcher 1 | . 1 . Special 1 | . 1 . Kinetic 142 | 4 107 31 Thermal 18 | 4 14 . Explosive 1 | . 1 . Electromagnetic . | . . . Robot Hit Streak 19 | 5 19 9 Robot Miss Streak 4 | 1 3 4 Penetration Max . | . . . Secondary Targets 1 | . 1 . Max Gunslinging Chain 1 | . 1 . Shots Hit Robots 111 | 6 85 20 Core Hits 44 | 3 35 6 Critical Kills . | . . . Critical Parts Destroyed 1 | . 1 . Critical Strikes 1 | . 1 . Destroy 1 | . 1 . Melee Attacks . | . . . Impact . | . . . Slashing . | . . . Piercing . | . . . Sneak Attacks . | . . . Combat Hostiles . | . . . Follow-up Attacks . | . . . Damage Inflicted 1583 | 80 1242 261 Guns 1403 | 67 1080 256 Cannons . | . . . Explosions 126 | . 126 . Melee . | . . . Ramming 54 | 13 36 5 Kinetic 1267 | 33 978 256 Thermal 136 | 34 102 . Explosive 126 | . 126 . Electromagnetic . | . . . Impact . | . . . Slashing . | . . . Piercing . | . . . Highest Corruption . | . . . Average Corruption . | . . . Corruption Purged . | . . . Corruption Blocked . | . . . Overload Shots . | . . . Overflow Damage . | . . . Projectiles . | . . . Explosions . | . . . Melee . | . . . Knockbacks . | . . . Impact . | . . . Kinetic . | . . . Secondary . | . . . Self-Inflicted Damage 10 | . 10 . Shots 1 | . 1 . Rammed 13 | 3 9 1 Targets Rammed 18 | 4 13 1 Kicked . | . . . Crushed 5 | 1 4 . Highest Temperature 45 | . 45 . Average Temperature 12 | . 12 . Received Heat Transfer 294 | . 294 . Siege Activations . | . . . Martial Activations . | . . . Shielding Activations . | . . . Robots Disrupted . | . . . Combat Hostiles . | . . . Robots Corrupted . | . . . Combat Hostiles . | . . . Parts Fried . | . . . Impact Corruptions . | . . . Robots Melted . | . . . Combat Hostiles . | . . . Parts Melted . | . . . Heat Transferred 300 | 75 225 . Parts Sabotaged . | . . . Parts Stolen . | . . . Parts Stripped . | . . . Power Chain Reactions . | . . . Alert | -11 -10 -10 ------- Run | Yrd Mat Min Maximum Alert Level . | . . . Low Security (%) 100 | 100 100 100 Level 1 . | . . . Level 2 . | . . . Level 3 . | . . . Level 4 . | . . . Level 5 . | . . . High Security . | . . . Max Security . | . . . Peak Influence 105 | 5 105 31 Initial 31 | . . 31 Average 29 | 1 36 3 Influence Increases 496 | 15 461 20 Destroy 0b10 Robot/C 300 | . 280 20 Destroy 0b10 Robot/NC 55 | 15 40 . Destroy Leader 74 | . 74 . Successful Hack 29 | . 29 . Destroy Structure 8 | . 8 . Lose Combat Pursuer 30 | . 30 . Influence Decreases 476 | 15 380 81 Entered New Map 50 | . . 50 Time Decay 426 | 15 380 31 Squads Dispatched 4 | . 4 . Investigation 2 | . 2 . Extermination . | . . . Reinforcement 2 | . 2 . Assault . | . . . Garrison . | . . . Intercept . | . . . Searches Triggered . | . . . Construction Impeded . | . . . Haulers Reinforced . | . . . Active Scanning Responses . | . . . Cargo Convoy Interrupts . | . . . Stealth | -11 -10 -10 --------- Run | Yrd Mat Min Distress Signals 3 | . 3 . Communications Jammed . | . . . Distress Signals . | . . . Times Spotted 34 | . 30 4 Peak Tracking Total 3 | . 3 3 Tactical Retreats 2 | . 2 . Traps | -11 -10 -10 ------- Run | Yrd Mat Min Traps Triggered 2 | . 2 . Indirectly . | . . . Trap Hack Attempts . | . . . Triggered . | . . . Disarmed . | . . . Reprogrammed . | . . . Reused . | . . . Traps Extracted . | . . . Installed . | . . . Triggered . | . . . Machines | -11 -10 -10 ---------- Run | Yrd Mat Min Machines Disabled . | . . . Max in Single Turn . | . . . Machines Repaired . | . . . Machines Dismantled . | . . . Machines Sabotaged . | . . . Overloaded Fab Kills . | . . . Hacking | -11 -10 -10 --------- Run | Yrd Mat Min Machines Accessed 8 | . 8 . Terminals 6 | . 6 . Fabricators . | . . . Repair Stations 1 | . 1 . Recycling Units 1 | . 1 . Scanalyzers . | . . . Garrison Access . | . . . Total Hacks 20 | . 20 . Successful 9 | . 9 . Failed 11 | . 11 . Catastrophic 3 | . 3 . Database Lockouts . | . . . Manual 5 | . 5 . Terminals 14 | . 14 . Fabricators . | . . . Repair Stations 4 | . 4 . Recycling Units 2 | . 2 . Scanalyzers . | . . . Garrison Access . | . . . Terminal Hacks 3 | . 3 . Robot Analysis 1 | . 1 . Locate Traps 1 | . 1 . Registered Components 1 | . 1 . Fabricator Hacks . | . . . Repair Station Hacks 4 | . 4 . Scan Component 2 | . 2 . Repair 2 | . 2 . Recycling Unit Hacks 1 | . 1 . Retrieve Components 1 | . 1 . Scanalyzer . | . . . Garrison Access Hacks . | . . . Unauthorized Hacks 1 | . 1 . Terminals 1 | . 1 . Track 1 | . 1 . Fabricators . | . . . Repair Stations . | . . . Recycling Units . | . . . Scanalyzers . | . . . Garrison Access . | . . . Data Cores Recovered . | . . . Used . | . . . Hacking Detections 7 | . 7 . Full Trace Events 1 | . 1 . Feedback Events . | . . . Feedback Blocked . | . . . Robot Schematics Acquired . | . . . Robots Built . | . . . Authchips . | . . . Time . | . . . Total Robot Build Rating . | . . . Part Schematics Acquired . | . . . Parts Built . | . . . Authchips . | . . . Time . | . . . Total Part Build Rating . | . . . Parts Repaired 2 | . 2 . Time 52 | . 52 . Parts Recycled . | . . . Recycled Matter . | . . . Retrieved Matter . | . . . Retrieved Components 2 | . 2 . Parts Scanalyzed . | . . . Part Schematics Acquired . | . . . Parts Damaged . | . . . Bothacking | -11 -10 -10 ------------ Run | Yrd Mat Min Used RIF Installer . | . . . Robots Hacked . | . . . Non-combat . | . . . Combat . | . . . Robot Hacks Applied . | . . . Relay Couplers Released . | . . . Fabnet Peak Effective % . | . . . Robots Rewired . | . . . Allies Hacked . | . . . Hacks Repelled . | . . . Allies | -11 -10 -10 -------- Run | Yrd Mat Min Total Allies . | . . . Largest Group . | . . . Highest-Rated Group . | . . . Highest-Rated Ally . | . . . Total Orders . | . . . Ally Attacks . | . . . Total Damage . | . . . Kills . | . . . Allies Corrupted . | . . . Allies Melted . | . . . Intel | -11 -10 -10 ------- Run | Yrd Mat Min Active Infowar (turns) 1627 | 42 1241 344 Seismic 1627 | 42 1241 344 Robot Analysis Total 1 | . 1 . Derelict Logs Recovered 1 | . . 1 Drone Launches . | . . . Drone Recoveries . | . . . Exploration | -11 -10 -10 ------------- Run | Yrd Mat Min Turns Passed 2130 | 105 1681 344 Spaces Moved 1029 | 49 812 168 Core 5 | 5 . . Treads 1024 | 44 812 168 Legs . | . . . Wheels . | . . . Hover . | . . . Flight . | . . . Fastest Speed 50 | 50 160 160 Average Speed 159 | 148 160 160 Slowest Speed 160 | 160 160 160 Overloaded Moves . | . . . Propulsion Burnouts . | . . . Robots Hopped . | . . . Potential Cave-ins . | . . . Cave-ins Triggered . | . . . Exploration Rate (%) 42 | 4 96 26 Regions Visited 2 Branch Regions 1 Pre-discovered Areas . | . . . Known Exits Taken . | . . . Unknown Exits Taken 2 | 1 1 . Scrap Searched 2 | . . 2 Spaces Dug 7 | . 7 . Terrain Destroyed 7 | . 7 . Melee . | . . . Projectile 1 | . 1 . AOE 6 | . 6 . Terrain Rammed . | . . . Walls Destroyed . | . . . Machines Disabled . | . . . Actions | -11 -10 -10 --------- Run | Yrd Mat Min Total 1348 | 68 1066 214 Wait 151 | . 130 21 Move 1028 | 49 811 168 Hop . | . . . Pick Up 28 | 5 21 2 Fast Attach 6 | 6 . . Attach 9 | 1 3 5 Detach 2 | . 2 . Swap 12 | . 12 . Drop 13 | . 12 1 Fire 82 | 4 62 16 Melee . | . . . Ram . | . . . Kick . | . . . Crush 17 | 3 13 1 Escape Stasis . | . . . Rewire . | . . . Trap . | . . . Miscellaneous . | . . . Route ------- -11/Scrapyard -10/Materials (discovered 4 exits: [*Mat x3] / [*Min]) -10/Mines History --------- Turn | Location | Event 46 | -11/Scrapyard | Discovered new exit (range 16) 106 | -11/Scrapyard | Entered Materials 270 | -10/Materials | Discovered new exit (range 16) 272 | -10/Materials | Discovered new exit (range 15) 313 | -10/Materials | Build established: Mutant 823 | -10/Materials | Discovered new exit (range 12) 951 | -10/Materials | Discovered new exit (range 16) 1686 | -10/Materials | Repaired Lgt. Treads 1713 | -10/Materials | Repaired Lgt. Treads 1787 | -10/Materials | Entered Mines 1806 | -10/Mines | YI-UF0 nonchalantly dropped a Grenade Launcher on the ground 1883 | -10/Mines | Received a Rocket Launcher from a helpful Derelict 1975 | -10/Mines | Core integrity fell below 50% 1998 | -10/Mines | Core integrity fell below 20% 2006 | -10/Mines | Destroyed YI-UF0 2034 | -10/Mines | Lost 5 parts (2n3w) 2113 | -10/Mines | Learned 4 Materials zone layouts 2131 | -10/Mines | Destroyed by S-10 Pest with Light Assault Rifle Last Messages --------------- 02004_ The unstable cave ceiling collapses. 02005_ YI-UF0: "BWOOM!" 02005_ U-05 Engineer destroyed. 02006_ The unstable cave ceiling collapses. 02006_ YI-UF0 destroyed. 02007_ The unstable cave ceiling collapses. 02024_ Acquired Adv. Heat Sink. 02025_ The unstable cave ceiling collapses. 02025_ Acquired 106 matter. 02031_ The unstable cave ceiling collapses. 02046_ Searching scrap... 02046_ Found Med. Matter Pod. 02046_ Found Power Shielding. 02046_ Found Beam Cannon. 02046_ Found 64 Matter. 02102_ K-01 Serf collects debris. 02113_ Acquired derelict log, extracted data. Data stored: Materials zone layouts (x4). 02116_ K-01 Serf collects debris. 02130_ S-10 Pest destroyed. Map ----- +----------------------------------------------------+ | ?????????????????????????????? | | ?????????????????????????????? | | ?????????????????????????????? | | ?????????????????????????????? | | ?????????????????????????????? | | ?????????????????????????????? | | ?????????????????????????????? | | ?????????????????????????????? | | ?????????????????????????????? | | ?????????????????????????????? | | ?????????????????????????????? | | ?????????????????????????????? | | ?????????????????????????????? | | ?????????????????????????????? | | ?????????????????????????????? | | ???????????????????????####??? | | ??????????????????????## ##?? | | ?????????????????????## #?? | | ????????????????????## k #?? | | ???????????????????## #?? | | ???????????????????# #?? | | ???????????????????# #?? | | ???????????????????# #?? | | ????????????????????# #??? | | ????????????????????## #??? | | ?????????????????????### @#??? | | ???????????????????????# #??? | | ?????????????# #### #??? | | ??????????????# #??? | | ??????????????# ### #??? | | ??????????????# ????# #??? | | ??????????????# ???????# #??? | | ???????????????????????# #??? | | ??????????????????????## ##?? | | ?????????????????????## ##? | | ?????????????????????# #? | | ?????????????????????# #? | | ?????????????????????## * ##? | | ???????????????????#####s% #?? | | ???????????????????# s #?? | | ???????????????????# #### ##?? | | ????????????????????????# #??? | | ????????????????????????# #??? | | ????????????????????????# #??? | | ????????????????????????# #??? | | ????????????????????????# #??? | | ????????????????????????# #??? | | ????????????????????????# #??? | | ????????????????????????# #??? | | ????????????????????????# #??? | +----------------------------------------------------+ Best States ------------- Heat Dissipation 25 Energy Generation 14 Energy Capacity 250 Matter Stores 300 Matter Capacity 300 Sight Range 16 Terrain Scan Density 10 Evasion (%) 40 Recoil Reduction 2 Item Schematics ----------------- None Robot Schematics ------------------ None Fabricated ------------ Nothing Repaired ---------- Lgt. Treads | 32% | -10/Materials Lgt. Treads | 25% | -10/Materials Alien Tech Used ----------------- None Achievements -------------- None Challenges ------------ None Game ------ Seed ShieldNodeMaul Manual? 0 Play Time 00:13:34 Cumulative 539.3 hours Start 2025.07.19 @ 20:38:00 End 2025.07.19 @ 20:50:39 Sessions 1 Manual Loads 0 Difficulty Rogue Special Mode None Game No. 236 Rogue 236 Adventurer 0 Explorer 0 Win Type - Total 25 Types 7/4/7/2/1/0/1/1/1/1 Lore% 91 Gallery% 87 Achievement% 81 Wizard Run 0 Options --------- Layout 0 ASCII 0 Keyboard 1 Movement Arrows Keybinds 0 Fullscreen 2 Font 18/SmallcapsGlow Map View 76x50 Zoom Use 0% Tactical HUD 1 Map Filters NONE Filters NONE Steam 1 RUN: b43d93a2-182c-4804-8457-ca7deaf7ec21